bitfinex-derivatives/quotes_BTCF0:USTF0_20250509
["timestamp","ask_amount","ask_price","bid_price","bid_amount"]
[1746810347537,0.5654,102560.0,102550.0,0.42555385]
[1746810347835,0.5654,102560.0,102550.0,0.3618587]
[1746810348130,0.3646,102560.0,102550.0,0.3618587]
[1746810348433,0.7254,102560.0,102550.0,0.3618587]
[1746810349235,0.7264,102560.0,102550.0,0.3648587]
[1746810349437,0.77549352,102560.0,102550.0,0.3648587]
[1746810349735,0.77549352,102560.0,102550.0,0.3658587]
[1746810349932,0.77549352,102560.0,102550.0,0.3171063]
[1746810350437,0.75549352,102560.0,102550.0,0.3171063]
[1746810350825,0.95049152,102560.0,102550.0,0.1221]
[1746810351131,0.95049152,102560.0,102550.0,0.317117]
[1746810352439,0.57089352,102560.0,102550.0,0.91445351]
[1746810352644,0.57089352,102560.0,102550.0,0.92938741]
[1746810353322,0.21009352,102560.0,102550.0,1.29018741]
[1746810353938,0.1079814,102560.0,102550.0,1.52329541]
[1746810354332,0.001,102560.0,102550.0,3.02329541]
[1746810355137,0.161,102560.0,102550.0,3.02329541]
[1746810359628,0.11137407,102580.0,102570.0,0.194979]
[1746810359824,0.04967407,102580.0,102570.0,1.42552862]
[1746810360037,0.1817,102590.0,102580.0,0.19496]
[1746810360328,0.1817,102590.0,102580.0,0.87341618]
[1746810360842,0.1817,102590.0,102580.0,1.33170582]
[1746810361036,0.1817,102590.0,102580.0,0.80107796]
[1746810361341,0.3457,102590.0,102580.0,0.97090582]
[1746810361838,0.3457,102590.0,102580.0,0.97090282]
[1746810362037,0.39504216,102590.0,102580.0,0.97090282]
[1746810362439,0.39504216,102590.0,102580.0,1.33170282]
[1746810362633,0.21634216,102590.0,102580.0,1.33270282]
[1746810362829,0.167,102590.0,102580.0,1.43018282]
[1746810363934,0.163,102590.0,102580.0,1.43018282]
[1746810364342,0.0780104,102590.0,102580.0,1.43018282]
[1746810364538,1e-07,102590.0,102580.0,1.43018282]
[1746810365240,0.1600001,102590.0,102580.0,1.43018282]
[1746810365640,0.16,102590.0,102580.0,1.42918282]
[1746810365841,0.16,102590.0,102580.0,2.93018282]
[1746810366043,0.1317412,102590.0,102580.0,2.93018282]
[1746810366339,0.1317412,102590.0,102580.0,2.94480282]
[1746810366734,0.10459,102590.0,102580.0,2.94480282]
[1746810366936,0.0622563,102590.0,102580.0,2.94478278]
[1746810367132,0.0213674,102590.0,102580.0,2.94478278]
[1746810367334,0.004,102630.0,102620.0,0.194884]
[1746810367537,0.004,102630.0,102620.0,0.72551186]
[1746810367731,0.004,102630.0,102620.0,0.194884]
[1746810368034,0.004,102630.0,102620.0,0.35426413]
[1746810368234,0.5248,102630.0,102620.0,0.35426413]
[1746810368831,0.6307242,102630.0,102620.0,0.58809199]
[1746810369044,0.6307242,102630.0,102620.0,0.41826413]
[1746810369845,0.6347242,102630.0,102620.0,0.41826413]
[1746810370947,0.6347242,102630.0,102620.0,0.69826413]
[1746810371332,0.6347242,102630.0,102620.0,0.71308804]
[1746810372538,0.6941242,102630.0,102620.0,0.71308804]
[1746810373741,0.2739242,102630.0,102620.0,0.8829159]
[1746810373947,0.1370948,102630.0,102620.0,1.68270376]
[1746810374144,0.1305,102640.0,102630.0,0.194865]
[1746810374145,1e-07,102640.0,102630.0,0.194865]
[1746810374446,1e-07,102640.0,102630.0,2.96179169]
[1746810374935,1e-07,102640.0,102630.0,3.05923383]
[1746810375141,0.004,102660.0,102650.0,0.194827]
[1746810375342,0.0664,102660.0,102650.0,1.24705486]
[1746810375539,0.30180188,102660.0,102650.0,1.24705486]
[1746810375743,0.36450188,102660.0,102650.0,0.48385964]
[1746810376137,0.69049378,102660.0,102650.0,0.30225964]
[1746810376345,1.52964974,102660.0,102650.0,0.194827]
[1746810376533,0.69049378,102660.0,102650.0,0.194827]
[1746810376843,0.33069378,102660.0,102650.0,0.83396852]
[1746810377149,0.33069378,102660.0,102650.0,0.89366852]
[1746810377849,0.26799378,102660.0,102650.0,1.25446852]
[1746810378742,0.26799378,102660.0,102650.0,0.89366852]
[1746810378939,0.26799378,102660.0,102650.0,1.25446852]
[1746810379542,0.26799378,102660.0,102650.0,1.08464066]
[1746810379739,0.32729378,102660.0,102650.0,1.25446852]
[1746810379935,0.32729378,102660.0,102650.0,2.75446852]
[1746810380140,0.32729378,102660.0,102650.0,1.25446852]
[1746810380335,0.2274,102660.0,102650.0,1.25446852]
[1746810380951,0.2274,102660.0,102650.0,0.66414066]
[1746810381250,0.6513,102660.0,102650.0,0.39224066]
[1746810382149,0.6513,102660.0,102650.0,0.64224066]
[1746810382349,0.6513,102660.0,102650.0,0.45684066]
[1746810383150,0.6513,102660.0,102650.0,0.70684066]
[1746810383342,0.6513,102660.0,102650.0,0.76884066]
[1746810385557,0.2905,102660.0,102650.0,0.76884066]
[1746810385748,0.2905,102660.0,102650.0,1.29946852]
[1746810386249,0.2274,102660.0,102650.0,1.29946852]
[1746810387053,0.2274,102660.0,102650.0,0.93866852]
[1746810387749,0.2274,102660.0,102650.0,0.76884066]
[1746810387949,0.2886,102660.0,102650.0,0.76884066]
[1746810388251,0.6494,102660.0,102650.0,0.78345066]
[1746810388551,0.81922786,102660.0,102650.0,0.78345066]
[1746810388745,0.6494,102660.0,102650.0,0.78345066]
[1746810388953,0.2886,102660.0,102650.0,0.78345066]
[1746810389147,0.165,102660.0,102650.0,0.95327852]
[1746810389342,0.226,102660.0,102650.0,0.95327852]
[1746810390843,0.026,102660.0,102650.0,0.95327852]
[1746810391253,0.186,102660.0,102650.0,0.95327852]
[1746810391746,0.16,102660.0,102650.0,0.96813702]
[1746810391949,0.16,102660.0,102650.0,1.32893702]
[1746810392151,0.16,102660.0,102650.0,1.31407852]
[1746810392342,0.16,102660.0,102650.0,0.95327852]
[1746810392542,0.16,102660.0,102650.0,0.96814481]
[1746810392944,0.16,102660.0,102650.0,1.32894481]
[1746810393253,0.16,102660.0,102650.0,1.3289447]
[1746810393450,0.16,102660.0,102650.0,0.9681447]
[1746810394155,0.2234,102660.0,102650.0,0.9681447]
[1746810394356,0.2234,102660.0,102650.0,1.3289447]
[1746810394652,0.16,102660.0,102650.0,1.3289447]
[1746810394855,0.16,102660.0,102650.0,1.4630647]
[1746810395254,1e-07,102660.0,102650.0,1.4630647]
[1746810396054,1e-07,102660.0,102650.0,1.5604767]
[1746810396453,1e-07,102660.0,102650.0,1.4263567]
[1746810396753,1e-07,102660.0,102650.0,1.3289447]
[1746810396947,1e-07,102660.0,102650.0,2.8319447]
[1746810397344,1e-07,102660.0,102650.0,2.9693447]
[1746810397955,0.0010001,102660.0,102650.0,2.9733447]
[1746810399159,0.1600001,102660.0,102650.0,2.9733447]
[1746810399455,0.1295844,102660.0,102650.0,2.9733447]
[1746810399661,0.0967687,102660.0,102650.0,2.9733447]
[1746810400052,1e-07,102660.0,102650.0,2.9733447]
[1746810403756,1e-07,102660.0,102650.0,3.12135965]
[1746810405654,1e-07,102660.0,102650.0,3.10649347]
[1746810405855,1e-07,102660.0,102650.0,3.12142808]
[1746810408759,0.1971,102670.0,102660.0,0.1948081]
[1746810408760,0.1313,102670.0,102660.0,0.1948081]
[1746810408960,0.1313,102670.0,102660.0,1.07943057]
[1746810409151,0.2913,102670.0,102660.0,1.07943057]
[1746810409351,0.2913,102670.0,102660.0,1.17683474]
[1746810409563,0.2913,102670.0,102660.0,2.67683474]
[1746810409964,0.2913,102670.0,102660.0,2.69444474]
[1746810410869,0.2913,102670.0,102660.0,3.05524474]
[1746810411166,0.2913,102670.0,102660.0,2.69444474]
[1746810411358,0.2913,102670.0,102660.0,3.05524474]
[1746810412067,0.3554,102670.0,102660.0,3.05524474]
[1746810412466,0.3554,102670.0,102660.0,2.69444474]
[1746810412657,0.3554,102670.0,102660.0,2.69444723]
[1746810413164,0.2314,102670.0,102660.0,3.05524723]
[1746810413359,0.0970685,102670.0,102660.0,3.05524723]
[1746810413560,1e-07,102670.0,102660.0,3.22507509]
[1746810414960,1e-07,102670.0,102660.0,2.88541937]
[1746810415362,1e-07,102670.0,102660.0,3.05524723]
[1746810415764,1e-07,102670.0,102660.0,3.22507509]
[1746810416270,1e-07,102670.0,102660.0,3.37309004]
[1746810416470,0.0221286,102680.0,102670.0,0.1947891]
[1746810416665,0.004,102720.0,102710.0,0.1947132]
[1746810416866,0.004,102720.0,102710.0,1.37175816]
[1746810417164,0.0975524,102720.0,102710.0,1.79916233]
[1746810417366,0.0975524,102720.0,102710.0,1.92266233]
[1746810417968,0.0206297,102720.0,102710.0,1.92263073]
[1746810419566,0.0206297,102720.0,102710.0,1.9226075]
[1746810419865,0.0206297,102720.0,102710.0,1.9256075]
[1746810420374,0.0618,102730.0,102720.0,0.1946943]
[1746810420669,0.0618,102730.0,102720.0,1.2448112]
[1746810421060,0.0618,102730.0,102720.0,1.34216796]
[1746810421271,0.2218,102730.0,102720.0,1.34216796]
[1746810422369,0.2218,102730.0,102720.0,1.34316796]
[1746810422568,0.2218,102730.0,102720.0,1.34516796]
[1746810422762,0.004,102750.0,102720.0,1.51499582]
[1746810422961,0.004,102750.0,102740.0,1.08608426]
[1746810423160,0.164,102750.0,102740.0,2.91608426]
[1746810423364,0.164,102750.0,102740.0,3.12044141]
[1746810423559,0.164,102750.0,102740.0,3.20292207]
[1746810423759,0.164,102750.0,102740.0,3.03309421]
[1746810423968,0.27380932,102750.0,102740.0,3.20292207]
[1746810424470,0.1069417,102750.0,102740.0,3.20292207]
[1746810424664,0.1069417,102750.0,102740.0,3.2177663]
[1746810424866,0.1069417,102750.0,102740.0,3.20292207]
[1746810425070,0.1069417,102750.0,102740.0,3.2177663]
[1746810425273,0.1069417,102750.0,102740.0,3.21776629]
[1746810425573,0.1049417,102750.0,102740.0,3.21876526]
[1746810425764,0.1657417,102750.0,102740.0,3.20392207]
[1746810425966,0.1657417,102750.0,102740.0,3.21976526]
[1746810426476,0.1657417,102750.0,102740.0,3.20492207]
[1746810426667,0.1657417,102750.0,102740.0,3.21976397]
[1746810426970,0.2258417,102750.0,102740.0,3.34136207]
[1746810428073,0.2258417,102750.0,102740.0,1.84136207]
[1746810428373,0.26053445,102750.0,102740.0,1.84136207]
[1746810428671,0.26053445,102750.0,102740.0,3.34136207]
[1746810428871,0.45517185,102750.0,102740.0,2.97409421]
[1746810429073,0.51877185,102750.0,102740.0,1.14409421]
[1746810429568,0.51877185,102750.0,102740.0,0.9831564]
[1746810429775,0.51877185,102750.0,102740.0,0.9182564]
[1746810430469,0.68859971,102750.0,102740.0,0.9182564]
[1746810430771,0.68859971,102750.0,102740.0,0.9172564]
[1746810430973,0.68959971,102750.0,102740.0,0.9172564]
[1746810431770,0.69059971,102750.0,102740.0,0.9162564]
[1746810432771,0.92492771,102750.0,102740.0,0.9162564]
[1746810432980,0.92492771,102750.0,102740.0,0.5554564]
[1746810433475,0.46313445,102750.0,102740.0,0.9162564]
[1746810433680,0.32613445,102750.0,102740.0,1.0455564]
[1746810434082,0.26603445,102750.0,102740.0,1.37271259]
[1746810434783,0.26603445,102750.0,102740.0,1.26228473]
[1746810435078,0.46067185,102750.0,102740.0,1.56228473]
[1746810435281,0.52247185,102750.0,102740.0,1.4055564]
[1746810436077,0.52247185,102750.0,102740.0,1.2762564]
[1746810436282,0.82929971,102750.0,102740.0,1.2762564]
[1746810438482,0.82929971,102750.0,102740.0,0.9162564]
[1746810438677,0.82929971,102750.0,102740.0,1.2862564]
[1746810439178,0.82929971,102750.0,102740.0,1.0916]
[1746810439382,0.99912757,102750.0,102740.0,0.9254564]
[1746810439584,0.82929971,102750.0,102740.0,0.9254564]
[1746810439881,0.1946564,102740.0,102730.0,0.3608]
[1746810440082,0.74962026,102740.0,102730.0,0.55353135]
[1746810440271,0.5797924,102740.0,102730.0,0.93353135]
[1746810440474,0.74962026,102740.0,102730.0,0.93353135]
[1746810440884,0.6201364,102740.0,102730.0,0.93353135]
[1746810441188,0.78996426,102740.0,102730.0,0.98503135]
[1746810441378,0.65228426,102740.0,102730.0,0.98503135]
[1746810441578,0.92640426,102740.0,102730.0,0.98603135]
[1746810442382,0.92740426,102740.0,102730.0,0.98603135]
[1746810442785,0.92840426,102740.0,102730.0,0.98503135]
[1746810443283,0.7585764,102740.0,102730.0,0.98503135]
[1746810443579,0.92840426,102740.0,102730.0,0.98503135]
[1746810445285,0.79072426,102740.0,102730.0,0.98503135]
[1746810445589,0.36114,102740.0,102730.0,0.98503135]
[1746810445771,0.6931164,102740.0,102730.0,0.98503135]
[1746810446279,0.2247,102740.0,102730.0,0.98503135]
[1746810446878,0.4193564,102740.0,102730.0,0.98503135]
[1746810447885,0.162,102740.0,102730.0,0.9999555]
[1746810449084,0.162,102740.0,102730.0,0.98503135]
[1746810449684,0.162,102740.0,102730.0,1.15485921]
[1746810449879,0.162,102740.0,102730.0,1.25219702]
[1746810450079,0.162,102740.0,102730.0,1.26712105]
[1746810450381,0.162,102740.0,102730.0,2.76712105]
[1746810451473,0.162,102740.0,102730.0,2.76912105]
[1746810451474,0.161,102740.0,102730.0,2.76912105]
[1746810451682,0.16,102740.0,102730.0,2.77212105]
[1746810453373,0.0943839,102740.0,102730.0,2.77212105]
[1746810453686,0.04865,102750.0,102740.0,0.1946564]
[1746810453991,0.01459,102750.0,102740.0,1.51970829]
[1746810454185,0.17459,102750.0,102740.0,1.51970829]
[1746810454382,0.17459,102750.0,102740.0,1.44721824]
[1746810454583,0.17459,102750.0,102740.0,1.61704366]
[1746810454786,0.17459,102750.0,102740.0,1.61804366]
[1746810458091,0.17459,102750.0,102740.0,1.61803766]
[1746810459893,0.17459,102750.0,102740.0,1.61803534]
[1746810461589,0.17459,102750.0,102740.0,1.6180302]
[1746810463292,0.1290501,102750.0,102740.0,1.6180302]
[1746810463498,1e-07,102750.0,102740.0,1.6180302]
[1746810464796,1e-07,102750.0,102740.0,3.1200302]
[1746810465095,0.0042554,102760.0,102750.0,0.1946374]
[1746810465303,0.5275033,102780.0,102770.0,0.1945995]
[1746810465595,0.5275033,102780.0,102770.0,1.2961995]
[1746810465797,0.5275033,102780.0,102770.0,1.4212995]
[1746810466303,0.6875033,102780.0,102770.0,1.4212995]
[1746810466596,0.72251034,102780.0,102770.0,1.4212995]
[1746810466802,0.52792704,102780.0,102770.0,1.4212995]
[1746810467001,0.53192704,102780.0,102770.0,1.4212995]
[1746810467299,0.53492704,102780.0,102770.0,1.4212995]
[1746810467687,0.54221704,102780.0,102770.0,1.4212995]
[1746810467887,0.73679764,102780.0,102770.0,1.4212995]
[1746810468400,1.0039255,102780.0,102770.0,0.9161995]
[1746810468594,1.0039255,102780.0,102770.0,1.2761995]
[1746810468793,1.0039255,102780.0,102770.0,0.9161995]
[1746810469000,1.0039255,102780.0,102770.0,1.2561995]
[1746810469497,1.0039255,102780.0,102770.0,1.3209995]
[1746810469697,1.0039255,102780.0,102770.0,1.3837995]
[1746810471401,0.9066255,102780.0,102770.0,1.3837995]
[1746810472195,0.7120449,102780.0,102770.0,1.3837995]
[1746810472495,0.21329704,102780.0,102770.0,1.65092728]
[1746810472704,0.21329704,102780.0,102770.0,1.72942582]
[1746810473098,0.21329704,102780.0,102770.0,3.22942582]
[1746810473796,0.21129704,102780.0,102770.0,3.22942582]
[1746810474601,0.20829704,102780.0,102770.0,3.22942582]
[1746810474991,0.40287764,102780.0,102770.0,3.05959796]
[1746810475192,0.46607764,102780.0,102770.0,1.39869804]
[1746810475400,0.59127764,102780.0,102770.0,1.36870188]
[1746810475608,0.59127764,102780.0,102770.0,1.4137995]
[1746810476309,0.59027764,102780.0,102770.0,1.4137995]
[1746810476509,0.20629704,102780.0,102770.0,1.42869969]
[1746810476701,0.40087764,102780.0,102770.0,1.52599961]
[1746810477008,0.6339055,102780.0,102770.0,1.42869876]
[1746810477208,0.7621055,102780.0,102770.0,1.42869876]
[1746810477715,0.59227764,102780.0,102770.0,1.42869876]
[1746810479899,0.59227764,102780.0,102770.0,1.42871123]
[1746810481714,0.59227764,102780.0,102770.0,1.4137995]
[1746810485017,0.7621055,102780.0,102770.0,1.4137995]
[1746810486919,0.7641055,102780.0,102770.0,1.4137995]
[1746810489222,0.59427764,102780.0,102770.0,1.4137995]
[1746810489724,0.7641055,102780.0,102770.0,1.4137995]
[1746810491823,0.7013055,102780.0,102770.0,1.4137995]
[1746810492414,0.7013055,102780.0,102770.0,1.41352295]
[1746810493718,0.6359055,102780.0,102770.0,1.41352295]
[1746810494725,0.46607764,102780.0,102770.0,1.41352295]
[1746810495321,0.46607764,102780.0,102770.0,1.04352295]
[1746810495523,0.46607764,102780.0,102770.0,1.39352295]
[1746810495826,0.46607764,102780.0,102770.0,1.04352295]
[1746810496029,0.46607764,102780.0,102770.0,1.42352295]
[1746810496530,0.5727055,102780.0,102770.0,1.42352295]
[1746810496726,0.40287764,102780.0,102770.0,1.42352295]
[1746810496921,0.40287764,102780.0,102770.0,1.43846306]
[1746810498027,0.40287764,102780.0,102770.0,1.43846412]
[1746810498326,0.46397764,102780.0,102770.0,1.43846414]
[1746810499328,0.6338055,102780.0,102770.0,1.43846414]
[1746810499722,0.6338055,102780.0,102770.0,1.4384668]
[1746810500123,0.4392249,102780.0,102770.0,1.4384668]
[1746810500425,0.20829704,102780.0,102770.0,1.4384668]
[1746810501217,0.20829704,102780.0,102770.0,1.43847366]
[1746810502928,0.40287764,102780.0,102770.0,1.43847366]
[1746810504121,0.46807764,102780.0,102770.0,1.43847366]
[1746810504729,0.80773336,102780.0,102770.0,1.04352295]
[1746810505036,0.1945995,102770.0,102760.0,0.6527074]
[1746810505227,0.1945995,102770.0,102760.0,1.12211683]
[1746810505228,0.56052736,102770.0,102760.0,1.12211683]
[1746810505429,0.56052736,102770.0,102760.0,1.13516273]
[1746810505635,0.56052736,102770.0,102760.0,0.84325533]
[1746810505826,0.56052736,102770.0,102760.0,1.03787383]
[1746810506231,0.72052736,102770.0,102760.0,1.0229185]
[1746810507433,0.72052736,102770.0,102760.0,0.5683]
[1746810507636,0.84879536,102770.0,102760.0,0.8025]
[1746810508332,1.20959536,102770.0,102760.0,0.38]
[1746810509432,1.29239536,102770.0,102760.0,0.38]
[1746810510037,0.1946185,102760.0,102750.0,0.0645]
[1746810510239,0.19096,102770.0,102750.0,0.77004238]
[1746810510433,0.27271243,102800.0,102790.0,0.1945617]
[1746810510637,0.05442863,102800.0,102790.0,1.07518956]
[1746810510930,0.27748132,102810.0,102800.0,0.1945428]
[1746810511130,0.46844132,102810.0,102800.0,1.24010002]
[1746810511330,0.46844132,102810.0,102800.0,1.07027216]
[1746810511530,0.32602065,102810.0,102800.0,1.33741888]
[1746810511839,0.32602065,102810.0,102800.0,1.33741234]
[1746810512142,0.32602065,102810.0,102800.0,1.00758448]
[1746810513144,0.27748132,102810.0,102800.0,1.00758448]
[1746810513828,0.004,102810.0,102800.0,1.00758448]
[1746810514031,0.004,102810.0,102800.0,1.06998448]
[1746810514239,0.004,102810.0,102800.0,1.29298448]
[1746810514435,0.004,102810.0,102800.0,1.30741189]
[1746810515238,0.0533914,102810.0,102800.0,1.30741189]
[1746810515542,0.36478786,102810.0,102800.0,1.29248907]
[1746810515837,0.19496,102810.0,102800.0,1.29248907]
[1746810516233,0.19496,102810.0,102800.0,1.13248907]
[1746810516742,0.004,102810.0,102800.0,1.13248907]
[1746810518644,0.24442328,102810.0,102800.0,1.13248907]
[1746810520035,0.24442328,102810.0,102800.0,1.30231693]
[1746810521643,0.24442328,102810.0,102800.0,1.13248907]
[1746810522539,0.24442328,102810.0,102800.0,1.49328907]
[1746810523139,0.19496,102810.0,102800.0,1.49328907]
[1746810523443,0.19496,102810.0,102800.0,1.66311693]
[1746810524347,0.004,102810.0,102800.0,1.83294479]
[1746810524646,0.004,102810.0,102800.0,1.79795693]
[1746810526646,0.004,102810.0,102800.0,1.84757328]
[1746810527247,0.004,102810.0,102800.0,2.00757328]
[1746810528152,0.004,102810.0,102800.0,1.79795693]
[1746810530046,1e-07,102810.0,102800.0,1.79795693]
[1746810531251,0.004,102840.0,102810.0,0.3608]
[1746810531450,0.19496,102840.0,102830.0,0.916086]
[1746810531747,0.19496,102840.0,102830.0,1.46721386]
[1746810532053,0.19496,102840.0,102830.0,1.63158539]
[1746810532238,0.19496,102840.0,102830.0,1.79158539]
[1746810532437,0.19596,102840.0,102830.0,1.79158539]
[1746810532744,0.24504598,102840.0,102830.0,1.79158539]
[1746810533137,0.24504598,102840.0,102830.0,1.63158539]
[1746810534337,0.24604598,102840.0,102830.0,1.63158539]
[1746810535247,0.15134872,102870.0,102830.0,1.46175753]
[1746810535452,0.15134872,102870.0,102860.0,1.08585716]
[1746810535751,0.27005675,102870.0,102860.0,1.40585716]
[1746810536049,0.12270803,102870.0,102860.0,1.4065293]
[1746810536237,0.12270803,102870.0,102860.0,1.66375827]
[1746810536642,0.12370803,102870.0,102860.0,1.66375827]
[1746810536948,0.12370803,102870.0,102860.0,1.83358613]
[1746810537145,0.12370803,102870.0,102860.0,1.50375827]
[1746810537453,0.06030803,102870.0,102860.0,1.67358613]
[1746810537848,0.13070803,102870.0,102860.0,1.50375827]
[1746810538149,0.19430803,102870.0,102860.0,1.51358613]
[1746810538654,0.18830803,102870.0,102860.0,1.57968613]
[1746810538953,0.18830803,102870.0,102860.0,1.40985827]
[1746810539455,0.18830803,102870.0,102860.0,1.42431474]
[1746810540651,0.18830803,102870.0,102860.0,1.26298577]
[1746810540853,0.18830803,102870.0,102860.0,1.19688577]
[1746810541155,0.58333589,102870.0,102860.0,1.31048577]
[1746810541356,0.60791843,102870.0,102860.0,1.31048577]
[1746810541562,0.41350803,102870.0,102860.0,0.93048577]
[1746810541747,0.60791843,102870.0,102860.0,0.93048577]
[1746810541948,0.60791843,102870.0,102860.0,1.25048577]
[1746810542150,0.77774629,102870.0,102860.0,1.25048577]
[1746810542463,1.19311015,102870.0,102860.0,0.3608]
[1746810542653,1.44311015,102870.0,102860.0,0.3608]
[1746810543450,1.42208229,102870.0,102860.0,0.3608]
[1746810543651,1.17208229,102870.0,102860.0,0.5552293]
[1746810544158,1.17208229,102870.0,102860.0,0.3608]
[1746810544457,1.17208229,102870.0,102860.0,0.5552293]
[1746810545254,1.17208229,102870.0,102860.0,0.3608]
[1746810545661,1.17208229,102870.0,102860.0,0.5552293]
[1746810546159,1.17208229,102870.0,102860.0,0.3608]
[1746810546865,1.17208229,102870.0,102860.0,0.5552293]
[1746810547266,1.00225443,102870.0,102860.0,0.5552293]
[1746810547457,1.17208229,102870.0,102860.0,0.5552293]
[1746810547857,1.00225443,102870.0,102860.0,0.5552293]
[1746810548058,1.17208229,102870.0,102860.0,0.9352293]
[1746810548256,0.41350803,102870.0,102860.0,0.9352293]
[1746810548453,0.34830803,102870.0,102860.0,1.17415716]
[1746810548653,0.28470803,102870.0,102860.0,1.40227195]
[1746810548859,0.17329,102870.0,102860.0,1.40227195]
[1746810549160,0.17329,102870.0,102860.0,1.56227195]
[1746810549161,0.01329,102870.0,102860.0,1.56227195]
[1746810550959,0.01329,102870.0,102860.0,1.57695561]
[1746810551160,0.01329,102870.0,102860.0,1.40712775]
[1746810551568,0.15049,102870.0,102860.0,1.40712775]
[1746810552059,0.08249,102870.0,102860.0,1.40712775]
[1746810552365,0.08249,102870.0,102860.0,1.24712775]
[1746810553773,0.15039,102870.0,102860.0,1.24712775]
[1746810556165,0.51462826,102870.0,102860.0,0.70621296]
[1746810556370,0.51462826,102870.0,102860.0,0.87991296]
[1746810557064,0.51462826,102870.0,102860.0,0.8652293]
[1746810558170,0.51462826,102870.0,102860.0,0.6708]
[1746810558366,0.51462826,102870.0,102860.0,0.8652293]
[1746810559265,0.67462826,102870.0,102860.0,0.8652293]
[1746810559572,0.66733826,102870.0,102860.0,0.8652293]
[1746810560173,0.50733826,102870.0,102860.0,0.8652293]
[1746810561563,0.4861504,102870.0,102860.0,0.8652293]
[1746810561764,0.4861504,102870.0,102860.0,1.0015293]
[1746810562875,0.4182504,102870.0,102860.0,1.0015293]
[1746810563174,0.58807826,102870.0,102860.0,1.0709293]
[1746810563367,0.65507826,102870.0,102860.0,1.0709293]
[1746810564673,0.66236826,102870.0,102860.0,1.0709293]
[1746810566269,0.66136826,102870.0,102860.0,1.0709293]
[1746810566468,0.66436826,102870.0,102860.0,1.0709293]
[1746810566774,0.66336826,102870.0,102860.0,1.0709293]
[1746810566965,0.4955404,102870.0,102860.0,1.0709293]
[1746810567169,0.82536826,102870.0,102860.0,1.0709293]
[1746810569575,0.6555404,102870.0,102860.0,1.0709293]
[1746810569772,0.82536826,102870.0,102860.0,1.0709293]
[1746810571773,0.99519612,102870.0,102860.0,0.5665]
[1746810571974,1.22819612,102870.0,102860.0,0.3608]
[1746810572172,0.1944293,102860.0,102850.0,0.7010775]
[1746810572478,0.50035716,102860.0,102850.0,1.1752775]
[1746810573184,0.66035716,102860.0,102850.0,1.1752775]
[1746810573379,0.66235716,102860.0,102850.0,1.1752775]
[1746810573574,0.4272293,102860.0,102850.0,0.8452775]
[1746810573780,0.4272293,102860.0,102850.0,1.2252775]
[1746810574078,0.57528674,102860.0,102850.0,1.2252775]
[1746810575671,0.64758674,102860.0,102850.0,1.2252775]
[1746810576175,0.8174146,102860.0,102850.0,1.2252775]
[1746810576582,0.8174146,102860.0,102850.0,0.7966655]
[1746810576781,0.66935716,102860.0,102850.0,1.1766655]
[1746810576972,0.73825716,102860.0,102850.0,1.1766655]
[1746810578482,0.5684293,102860.0,102850.0,1.1766655]
[1746810578684,0.3051,102860.0,102850.0,1.1766655]
[1746810578875,0.2328,102860.0,102850.0,1.1766655]
[1746810579076,0.2328,102860.0,102850.0,1.27388974]
[1746810579482,0.4272293,102860.0,102850.0,1.27388974]
[1746810579687,0.2328,102860.0,102850.0,1.27388974]
[1746810580183,0.162,102860.0,102850.0,1.27388974]
[1746810580386,0.162,102860.0,102850.0,1.4437176]
[1746810580586,0.162,102860.0,102850.0,1.45854886]
[1746810582181,0.162,102860.0,102850.0,1.55577286]
[1746810582674,0.162,102860.0,102850.0,1.45854886]
[1746810584087,0.162,102860.0,102850.0,1.45855229]
[1746810584978,0.1176119,102860.0,102850.0,1.45855229]
[1746810585184,0.15955057,102870.0,102860.0,0.1944293]
[1746810585378,0.15955057,102870.0,102860.0,1.63251185]
[1746810585590,0.01129,102870.0,102860.0,1.63251185]
[1746810585888,0.01129,102870.0,102860.0,3.22972664]
[1746810586276,0.01129,102870.0,102860.0,3.32694264]
[1746810586882,0.01129,102870.0,102860.0,3.34122359]
[1746810590994,0.25726057,102900.0,102890.0,0.1943726]
[1746810591186,0.25726057,102900.0,102890.0,1.42580046]
[1746810591491,0.25726057,102900.0,102890.0,1.64870759]
[1746810591692,0.25726057,102900.0,102890.0,1.74592238]
[1746810592192,0.48756057,102900.0,102890.0,1.73111525]
[1746810592687,0.49156057,102900.0,102890.0,1.73111525]
[1746810593291,0.41726057,102900.0,102890.0,1.74590663]
[1746810593486,0.35895237,102900.0,102890.0,1.74590602]
[1746810593994,0.2106918,102900.0,102890.0,1.74590602]
[1746810594189,1e-07,102900.0,102890.0,1.74590602]
[1746810594893,1e-07,102900.0,102890.0,2.04414602]
[1746810595093,1e-07,102900.0,102890.0,2.21397388]
[1746810595294,1e-07,102900.0,102890.0,2.04414602]
[1746810596091,1e-07,102900.0,102890.0,2.02935525]
[1746810596688,1e-07,102900.0,102890.0,2.02879525]
[1746810597186,0.2263001,102900.0,102890.0,2.02879525]
[1746810597693,0.1600001,102900.0,102890.0,2.02879525]
[1746810598196,1e-07,102900.0,102890.0,2.02879525]
[1746810598595,1e-07,102900.0,102890.0,3.52879525]
[1746810598989,1e-07,102900.0,102890.0,3.52979525]
[1746810599488,1e-07,102900.0,102890.0,3.53179525]
[1746810599690,1e-07,102900.0,102890.0,3.53279525]
[1746810600289,0.1600001,102900.0,102890.0,3.53279525]
[1746810600489,0.1600001,102900.0,102890.0,3.53479525]
[1746810603290,0.0698001,102900.0,102890.0,3.53479525]
[1746810603488,0.0698001,102900.0,102890.0,3.38727525]
[1746810603685,0.0698001,102900.0,102890.0,3.53407525]
[1746810603896,1e-07,102900.0,102890.0,3.53407525]
[1746810604996,1e-07,102900.0,102890.0,3.53107525]
[1746810605189,0.1600001,102900.0,102890.0,3.53107525]
[1746810605388,0.2289001,102900.0,102890.0,3.53107525]
[1746810606083,0.2289001,102900.0,102890.0,3.5458336]
[1746810606897,0.2289001,102900.0,102890.0,3.54583359]
[1746810607897,0.2289001,102900.0,102890.0,3.37600573]
[1746810608091,0.2289001,102900.0,102890.0,3.54583359]
[1746810608689,0.2289001,102900.0,102890.0,3.15740573]
[1746810608897,0.3013001,102900.0,102890.0,3.32723359]
[1746810609197,0.3747001,102900.0,102890.0,3.32723359]
[1746810610701,0.3747001,102900.0,102890.0,3.32725641]
[1746810611596,0.3023001,102900.0,102890.0,3.32725641]
[1746810611801,0.3023001,102900.0,102890.0,3.32425641]
[1746810611998,0.3023001,102900.0,102890.0,3.32525641]
[1746810612198,0.3023001,102900.0,102890.0,3.32325641]
[1746810613098,0.3023001,102900.0,102890.0,3.15342855]
[1746810613299,0.3023001,102900.0,102890.0,3.32325641]
[1746810613997,0.3023001,102900.0,102890.0,3.30847525]
[1746810614200,0.3023001,102900.0,102890.0,3.32327333]
[1746810617997,0.3023001,102900.0,102890.0,3.15344547]